[Event "*** Titled Tuesday Blitz"]
[Site "Chess.com"]
[Date "2018.08.07"]
[Round "2"]
[White "51616516516"]
[Black "nitpicker"]
[Result "1-0"]
[WhiteElo "2198"]
[BlackElo "2100"]
[TimeControl "180+2"]
[EndTime "13:20:25 PDT"]
[Termination "51616516516 won by resignation"]

1. d4 {[%clk 0:02:58.1]} 1... Nf6 {[%clk 0:02:59.4]} 2. c4 {[%clk 0:02:59.2]}
2... e6 {[%clk 0:03:00]} 3. Nc3 {[%clk 0:03:00.1]} 3... Bb4 {[%clk 0:03:00.4]}
4. Qc2 {[%clk 0:03:01.7]} 4... c5 {[%clk 0:03:00.6]} 5. dxc5 {[%clk 0:03:02.5]}
5... Bxc5 {[%clk 0:03:00.5]} 6. Nf3 {[%clk 0:02:57]} 6... Qb6 {[%clk 0:03:00.8]}
7. e3 {[%clk 0:02:54.8]} 7... Qc7 {[%clk 0:03:01.6]} 8. Be2 {[%clk 0:02:53.4]}
8... a6 {[%clk 0:03:02.7]} 9. O-O {[%clk 0:02:54]} 9... Be7 {[%clk 0:03:03.6]}
10. e4 {[%clk 0:02:51.4]} 10... d6 {[%clk 0:03:04.4]} 11. b3 {[%clk 0:02:46.5]}
11... Nbd7 {[%clk 0:03:04.9]} 12. Bb2 {[%clk 0:02:46]} 12... O-O {[%clk
0:03:04.7]} 13. Rac1 {[%clk 0:02:47.1]} 13... b6 {[%clk 0:03:05.7]} 14. Nd4
{[%clk 0:02:40]} 14... Bb7 {[%clk 0:03:05.5]} 15. f3 {[%clk 0:02:38.4]} 15...
Rac8 {[%clk 0:03:05.8]} 16. Qd2 {[%clk 0:02:37.2]} 16... Qb8 {[%clk 0:02:52.9]}
17. Kh1 {[%clk 0:02:36.7]} 17... Bd8 {[%clk 0:02:45.1]} 18. Qe3 {[%clk
0:02:32.3]} 18... Bc7 {[%clk 0:02:45.1]} 19. f4 {[%clk 0:02:27.1]} 19... Nc5
{[%clk 0:02:28.6]} 20. Bf3 {[%clk 0:02:25.8]} 20... Rfe8 {[%clk 0:02:16.1]} 21.
Nde2 {[%clk 0:02:21.8]} 21... d5 {[%clk 0:02:02.6]} 22. e5 {[%clk 0:02:17.1]}
22... Nfe4 {[%clk 0:01:55.7]} 23. Nxe4 {[%clk 0:02:17.2]} 23... Nxe4 {[%clk
0:01:54]} 24. Bxe4 {[%clk 0:02:16.7]} 24... dxe4 {[%clk 0:01:54.1]} 25. Ng3
{[%clk 0:02:15.7]} 25... Qa8 {[%clk 0:01:54.2]} 26. Nh5 {[%clk 0:02:15.2]} 26...
Kh8 {[%clk 0:01:48.2]} 27. Qg3 {[%clk 0:02:07.3]} 27... Rg8 {[%clk 0:01:48.6]}
28. f5 {[%clk 0:02:07.4]} 28... exf5 {[%clk 0:01:42.1]} 29. Rxf5 {[%clk
0:02:07.3]} 29... f6 {[%clk 0:01:25]} 30. Rxf6 {[%clk 0:01:03.7]} 30... Rce8
{[%clk 0:00:48.8]} 31. Rf7 {[%clk 0:00:58.6]} 31... e3 {[%clk 0:00:20.5]} 32.
Rxc7 {[%clk 0:00:56.6]} 1-0

[Event "*** Titled Tuesday Blitz"]
[Site "Chess.com"]
[Date "2018.08.07"]
[Round "2"]
[White "Margency"]
[Black "advantageLucy"]
[Result "1-0"]
[WhiteElo "2710"]
[BlackElo "2487"]
[TimeControl "180+2"]
[EndTime "13:20:29 PDT"]
[Termination "Margency won by resignation"]

1. e4 {[%clk 0:03:01.9]} 1... e6 {[%clk 0:03:00.6]} 2. d4 {[%clk 0:03:02.5]}
2... d5 {[%clk 0:03:01.8]} 3. Nc3 {[%clk 0:03:03.6]} 3... Bb4 {[%clk 0:03:02.1]}
4. e5 {[%clk 0:03:04.4]} 4... c5 {[%clk 0:03:03.2]} 5. a3 {[%clk 0:03:05.3]}
5... Bxc3+ {[%clk 0:03:04.1]} 6. bxc3 {[%clk 0:03:07.2]} 6... Qa5 {[%clk
0:03:03.2]} 7. Bd2 {[%clk 0:03:06.8]} 7... Qa4 {[%clk 0:03:04.1]} 8. Qb1 {[%clk
0:03:07.5]} 8... c4 {[%clk 0:03:05.1]} 9. Nh3 {[%clk 0:03:07.5]} 9... Nc6 {[%clk
0:02:59.2]} 10. Nf4 {[%clk 0:03:07.3]} 10... g6 {[%clk 0:02:59.8]} 11. h4 {[%clk
0:03:01.3]} 11... h6 {[%clk 0:02:59.6]} 12. g3 {[%clk 0:03:01.4]} 12... Nge7
{[%clk 0:02:58.4]} 13. Bh3 {[%clk 0:03:01.6]} 13... Bd7 {[%clk 0:02:37.7]} 14.
Ng2 {[%clk 0:03:00]} 14... O-O-O {[%clk 0:02:13.4]} 15. Qc1 {[%clk 0:02:55.7]}
15... Qa5 {[%clk 0:01:49.1]} 16. a4 {[%clk 0:02:52.3]} 16... Kb8 {[%clk
0:01:46.9]} 17. Ra3 {[%clk 0:02:04.2]} 17... Rdg8 {[%clk 0:01:09.3]} 18. Ke2
{[%clk 0:01:54.6]} 18... Nf5 {[%clk 0:00:33.9]} 19. Bxf5 {[%clk 0:01:53.1]}
19... gxf5 {[%clk 0:00:32.1]} 20. Bxh6 {[%clk 0:01:52.1]} 20... f6 {[%clk
0:00:30.9]} 21. exf6 {[%clk 0:01:50.4]} 21... e5 {[%clk 0:00:32.2]} 22. f7
{[%clk 0:01:39.2]} 22... Rc8 {[%clk 0:00:25.9]} 23. dxe5 {[%clk 0:01:36.9]}
23... d4 {[%clk 0:00:22.5]} 24. Qf4 {[%clk 0:01:21.3]} 24... Ka8 {[%clk
0:00:22.6]} 25. f8=Q {[%clk 0:01:20.8]} 25... Rhxf8 {[%clk 0:00:23.3]} 26. Bxf8
{[%clk 0:01:21.6]} 26... Rxf8 {[%clk 0:00:25.2]} 27. cxd4 {[%clk 0:01:21]} 27...
Qd5 {[%clk 0:00:24.7]} 28. c3 {[%clk 0:01:03.2]} 28... Qxg2 {[%clk 0:00:24.7]}
29. Qf3 {[%clk 0:01:04.4]} 29... Nxd4+ {[%clk 0:00:20.7]} 30. cxd4 {[%clk
0:01:01.7]} 30... Qxf3+ {[%clk 0:00:21.4]} 31. Rxf3 {[%clk 0:01:00.8]} 31... Bc6
{[%clk 0:00:22.2]} 32. Rc1 {[%clk 0:00:56.9]} 32... Bd5 {[%clk 0:00:19.4]} 33.
Rf4 {[%clk 0:00:54.4]} 33... b6 {[%clk 0:00:20.4]} 34. g4 {[%clk 0:00:53.1]}
34... Kb7 {[%clk 0:00:18.4]} 35. gxf5 {[%clk 0:00:52.1]} 35... Kc6 {[%clk
0:00:19]} 36. h5 {[%clk 0:00:51.1]} 1-0

[Event "*** Titled Tuesday Blitz"]
[Site "Chess.com"]
[Date "2018.08.07"]
[Round "2"]
[White "aa175"]
[Black "Marreuh"]
[Result "0-1"]
[WhiteElo "1935"]
[BlackElo "2070"]
[TimeControl "180+2"]
[EndTime "13:20:33 PDT"]
[Termination "Marreuh won by checkmate"]

1. e4 {[%clk 0:03:01.9]} 1... c5 {[%clk 0:03:00.6]} 2. Nf3 {[%clk 0:02:51.5]}
2... d6 {[%clk 0:03:01.7]} 3. d4 {[%clk 0:02:49.9]} 3... cxd4 {[%clk 0:03:03.6]}
4. Nxd4 {[%clk 0:02:51.8]} 4... Nf6 {[%clk 0:03:05.2]} 5. Nc3 {[%clk 0:02:51.4]}
5... a6 {[%clk 0:03:04.4]} 6. Be3 {[%clk 0:02:52.1]} 6... e5 {[%clk 0:03:04.2]}
7. Nb3 {[%clk 0:02:52.7]} 7... Be7 {[%clk 0:03:05.5]} 8. f3 {[%clk 0:02:53.2]}
8... Be6 {[%clk 0:03:06.5]} 9. Qd2 {[%clk 0:02:54.4]} 9... Nbd7 {[%clk
0:03:07.7]} 10. O-O-O {[%clk 0:02:53.9]} 10... O-O {[%clk 0:03:08.5]} 11. g4
{[%clk 0:02:51.7]} 11... b5 {[%clk 0:03:09.7]} 12. h4 {[%clk 0:02:27.8]} 12...
b4 {[%clk 0:03:10.1]} 13. Nd5 {[%clk 0:02:24.8]} 13... Bxd5 {[%clk 0:03:11.4]}
14. exd5 {[%clk 0:02:26.7]} 14... a5 {[%clk 0:03:12.1]} 15. Na1 {[%clk
0:02:16.9]} 15... Nb6 {[%clk 0:03:03.5]} 16. Bxb6 {[%clk 0:02:08.7]} 16... Qxb6
{[%clk 0:03:05.4]} 17. g5 {[%clk 0:02:10.4]} 17... Nd7 {[%clk 0:03:04.2]} 18. h5
{[%clk 0:02:03.8]} 18... Rac8 {[%clk 0:02:53.3]} 19. g6 {[%clk 0:02:03.2]} 19...
h6 {[%clk 0:02:45.7]} 20. Bh3 {[%clk 0:02:00.8]} 20... Bg5 {[%clk 0:02:42]} 21.
Qxg5 {[%clk 0:01:49.8]} 21... hxg5 {[%clk 0:02:42.3]} 22. Bxd7 {[%clk
0:01:51.7]} 22... Rc7 {[%clk 0:02:35.2]} 23. gxf7+ {[%clk 0:01:21.7]} 23... Kxf7
{[%clk 0:02:29.4]} 24. Be6+ {[%clk 0:01:17.6]} 24... Ke7 {[%clk 0:02:30.5]} 25.
h6 {[%clk 0:01:17.7]} 25... gxh6 {[%clk 0:02:24.3]} 26. Rxh6 {[%clk 0:01:19.6]}
26... Qe3+ {[%clk 0:02:06.3]} 27. Kb1 {[%clk 0:01:19.4]} 27... Qxf3 {[%clk
0:02:07.2]} 28. Rc1 {[%clk 0:01:00.7]} 28... a4 {[%clk 0:01:51]} 29. c3 {[%clk
0:00:44]} 29... Qd3+ {[%clk 0:01:40.8]} 30. Nc2 {[%clk 0:00:16.7]} 30... b3
{[%clk 0:01:41.4]} 31. Rh3 {[%clk 0:00:15.5]} 31... bxc2+ {[%clk 0:01:40.8]} 32.
Ka1 {[%clk 0:00:16.7]} 32... Qd1 {[%clk 0:01:40.8]} 33. Rh7+ {[%clk 0:00:08.8]}
33... Kd8 {[%clk 0:01:41.1]} 34. Rh1 {[%clk 0:00:09.6]} 34... Qd2 {[%clk
0:01:38.8]} 35. a3 {[%clk 0:00:02.6]} 35... e4 {[%clk 0:01:38.3]} 36. Ka2 {[%clk
0:00:02.3]} 36... e3 {[%clk 0:01:38.8]} 37. Rhe1 {[%clk 0:00:02.4]} 37... e2
{[%clk 0:01:39.6]} 38. Bg4 {[%clk 0:00:02.8]} 38... Rf1 {[%clk 0:01:35.4]} 39.
Rxe2 {[%clk 0:00:02.3]} 39... Qxc1 {[%clk 0:01:27.2]} 40. Re8+ {[%clk
0:00:02.4]} 40... Kxe8 {[%clk 0:01:26.8]} 41. Bh5+ {[%clk 0:00:04.3]} 41... Kd8
{[%clk 0:01:27.1]} 42. Bd1 {[%clk 0:00:06.2]} 42... cxd1=Q {[%clk 0:01:26.7]}
43. b3 {[%clk 0:00:02.4]} 43... Qxb3# {[%clk 0:01:28.1]} 0-1

[Event "*** Titled Tuesday Blitz"]
[Site "Chess.com"]
[Date "2018.08.07"]
[Round "2"]
[White "champ2005"]
[Black "Abrito99"]
[Result "1-0"]
[WhiteElo "2718"]
[BlackElo "2488"]
[TimeControl "180+2"]
[EndTime "13:20:34 PDT"]
[Termination "champ2005 won by resignation"]

1. e4 {[%clk 0:03:01.4]} 1... c5 {[%clk 0:02:59.8]} 2. Nf3 {[%clk 0:03:00.9]}
2... e6 {[%clk 0:03:01.3]} 3. b3 {[%clk 0:03:01.6]} 3... b6 {[%clk 0:02:57.3]}
4. Bb2 {[%clk 0:03:01.6]} 4... Bb7 {[%clk 0:02:58.8]} 5. Nc3 {[%clk 0:03:02.3]}
5... Nc6 {[%clk 0:02:54.3]} 6. d4 {[%clk 0:03:03]} 6... cxd4 {[%clk 0:02:53.2]}
7. Nxd4 {[%clk 0:03:04]} 7... a6 {[%clk 0:02:54.2]} 8. Nxc6 {[%clk 0:03:04.6]}
8... Bxc6 {[%clk 0:02:54.1]} 9. Bd3 {[%clk 0:03:05.6]} 9... Qc7 {[%clk
0:02:50.7]} 10. O-O {[%clk 0:03:06.1]} 10... Bd6 {[%clk 0:02:51.2]} 11. h3
{[%clk 0:03:04.1]} 11... Ne7 {[%clk 0:02:51.8]} 12. Ne2 {[%clk 0:03:03.8]} 12...
O-O {[%clk 0:02:16]} 13. Qd2 {[%clk 0:03:00.8]} 13... f5 {[%clk 0:02:13.8]} 14.
exf5 {[%clk 0:02:51]} 14... Nxf5 {[%clk 0:02:10.5]} 15. Nd4 {[%clk 0:02:36.8]}
15... Bf4 {[%clk 0:00:41.1]} 16. Qe2 {[%clk 0:02:32.5]} 16... Nxd4 {[%clk
0:00:36]} 17. Bxd4 {[%clk 0:02:33.2]} 17... e5 {[%clk 0:00:37.6]} 18. Bb2 {[%clk
0:02:27.3]} 18... d5 {[%clk 0:00:33.7]} 19. c4 {[%clk 0:02:27.4]} 19... d4
{[%clk 0:00:30.1]} 20. Be4 {[%clk 0:02:20.6]} 20... Rae8 {[%clk 0:00:28]} 21. g3
{[%clk 0:02:18]} 21... Bg5 {[%clk 0:00:25.7]} 22. Rad1 {[%clk 0:02:17.1]} 22...
Qb7 {[%clk 0:00:23.9]} 23. Rfe1 {[%clk 0:02:15.9]} 23... Be3 {[%clk 0:00:08.6]}
24. Bxc6 {[%clk 0:02:08.7]} 24... Bxf2+ {[%clk 0:00:07.7]} 25. Qxf2 {[%clk
0:02:08.9]} 25... Qxc6 {[%clk 0:00:08.5]} 26. Qg2 {[%clk 0:02:09.8]} 26... Rf3
{[%clk 0:00:09]} 27. Rf1 {[%clk 0:02:01.4]} 27... Ref8 {[%clk 0:00:09.1]} 28.
Rxf3 {[%clk 0:02:02.3]} 28... Rxf3 {[%clk 0:00:11]} 29. Rf1 {[%clk 0:02:03.5]}
29... Rxf1+ {[%clk 0:00:12.2]} 30. Kxf1 {[%clk 0:02:04.7]} 30... Qe6 {[%clk
0:00:13.4]} 31. Kg1 {[%clk 0:02:02.3]} 31... Qf5 {[%clk 0:00:13.2]} 32. Kh2
{[%clk 0:01:58.6]} 32... h6 {[%clk 0:00:13.1]} 33. b4 {[%clk 0:01:55.1]} 33...
Qd3 {[%clk 0:00:14]} 34. c5 {[%clk 0:01:55.9]} 34... bxc5 {[%clk 0:00:14.6]} 35.
bxc5 {[%clk 0:01:56.9]} 35... Qc4 {[%clk 0:00:14.6]} 36. c6 {[%clk 0:01:58]}
36... Kf7 {[%clk 0:00:09]} 37. Ba3 {[%clk 0:01:54]} 37... Ke6 {[%clk 0:00:09]}
38. Bf8 {[%clk 0:01:52.9]} 38... Kf7 {[%clk 0:00:07.5]} 39. Qf3+ {[%clk
0:01:47.4]} 39... Kg8 {[%clk 0:00:08.7]} 40. Bd6 {[%clk 0:01:46.3]} 40... Qxa2+
{[%clk 0:00:10]} 41. Qg2 {[%clk 0:01:46.5]} 41... Qe6 {[%clk 0:00:10.5]} 42. c7
{[%clk 0:01:46.8]} 42... e4 {[%clk 0:00:11.8]} 43. Qc2 {[%clk 0:01:43.2]} 43...
Qc8 {[%clk 0:00:04.7]} 44. Qxe4 {[%clk 0:01:43.7]} 1-0

[Event "*** Titled Tuesday Blitz"]
[Site "Chess.com"]
[Date "2018.08.07"]
[Round "2"]
[White "tteshan"]
[Black "Alohamora11"]
[Result "1-0"]
[WhiteElo "2021"]
[BlackElo "2200"]
[TimeControl "180+2"]
[EndTime "13:20:40 PDT"]
[Termination "tteshan won by checkmate"]

1. d4 {[%clk 0:03:01.9]} 1... Nf6 {[%clk 0:03:00.1]} 2. c4 {[%clk 0:03:02.1]}
2... c5 {[%clk 0:03:00.7]} 3. d5 {[%clk 0:03:02.7]} 3... e6 {[%clk 0:03:01.8]}
4. Nc3 {[%clk 0:03:02.8]} 4... exd5 {[%clk 0:03:03.1]} 5. cxd5 {[%clk
0:03:04.3]} 5... d6 {[%clk 0:03:04.7]} 6. e4 {[%clk 0:03:04.2]} 6... g6 {[%clk
0:03:05.9]} 7. f4 {[%clk 0:03:04.3]} 7... Bg7 {[%clk 0:03:06.1]} 8. Bb5+ {[%clk
0:03:05.7]} 8... Nfd7 {[%clk 0:03:06.5]} 9. a4 {[%clk 0:03:06.5]} 9... O-O
{[%clk 0:03:06.8]} 10. Nf3 {[%clk 0:03:06.6]} 10... Na6 {[%clk 0:03:08.1]} 11.
O-O {[%clk 0:03:06]} 11... Nb4 {[%clk 0:03:09.2]} 12. Be3 {[%clk 0:03:01.2]}
12... a6 {[%clk 0:03:09.9]} 13. Bc4 {[%clk 0:03:01.5]} 13... Re8 {[%clk
0:03:10.8]} 14. Re1 {[%clk 0:02:58.1]} 14... Rb8 {[%clk 0:03:11.4]} 15. Bf1
{[%clk 0:02:54.3]} 15... b5 {[%clk 0:03:08.3]} 16. axb5 {[%clk 0:02:54.2]} 16...
axb5 {[%clk 0:03:10.2]} 17. Bf2 {[%clk 0:02:50.7]} 17... c4 {[%clk 0:03:03.5]}
18. Qd2 {[%clk 0:02:41.3]} 18... Na6 {[%clk 0:02:53.6]} 19. Bd4 {[%clk
0:02:24.2]} 19... Nac5 {[%clk 0:02:41.8]} 20. Bxg7 {[%clk 0:02:24.3]} 20... Kxg7
{[%clk 0:02:43.7]} 21. Nd4 {[%clk 0:02:20.1]} 21... b4 {[%clk 0:02:15.1]} 22.
Nc6 {[%clk 0:02:19.5]} 22... Qb6 {[%clk 0:02:14.4]} 23. Qd4+ {[%clk 0:02:19]}
23... Kg8 {[%clk 0:02:12.9]} 24. Nxb8 {[%clk 0:02:11.1]} 24... Nxb8 {[%clk
0:01:38.2]} 25. Nd1 {[%clk 0:02:06.4]} 25... Ba6 {[%clk 0:01:32.6]} 26. Kh1
{[%clk 0:02:04.3]} 26... Nbd7 {[%clk 0:01:17.8]} 27. Bxc4 {[%clk 0:01:58.3]}
27... Bxc4 {[%clk 0:01:19.7]} 28. Qxc4 {[%clk 0:01:58.9]} 28... Nf6 {[%clk
0:01:20.2]} 29. Nf2 {[%clk 0:01:55.1]} 29... h5 {[%clk 0:01:09.8]} 30. e5 {[%clk
0:01:53.6]} 30... dxe5 {[%clk 0:00:59]} 31. fxe5 {[%clk 0:01:53.9]} 31... Ng4
{[%clk 0:00:53.7]} 32. Nxg4 {[%clk 0:01:53.5]} 32... hxg4 {[%clk 0:00:54.6]} 33.
Rac1 {[%clk 0:01:46.5]} 33... Nd7 {[%clk 0:00:42.3]} 34. e6 {[%clk 0:01:41.3]}
34... fxe6 {[%clk 0:00:43.4]} 35. dxe6 {[%clk 0:01:41.6]} 35... Nf6 {[%clk
0:00:44.8]} 36. e7+ {[%clk 0:01:34.4]} 36... Kg7 {[%clk 0:00:46]} 37. Re6 {[%clk
0:01:27.2]} 37... Qa7 {[%clk 0:00:15.3]} 38. Rf1 {[%clk 0:01:24.3]} 38... Nh5
{[%clk 0:00:06.6]} 39. Rxg6+ {[%clk 0:01:20.6]} 39... Kxg6 {[%clk 0:00:06.5]}
40. Qf7+ {[%clk 0:01:21.7]} 40... Kg5 {[%clk 0:00:06.9]} 41. Rf5+ {[%clk
0:01:19.2]} 41... Kh4 {[%clk 0:00:07.3]} 42. Qxh5# {[%clk 0:01:18.4]} 1-0

[Event "*** Titled Tuesday Blitz"]
[Site "Chess.com"]
[Date "2018.08.07"]
[Round "2"]
[White "OK97"]
[Black "FrenchandSlav"]
[Result "1-0"]
[WhiteElo "2739"]
[BlackElo "2281"]
[TimeControl "180+2"]
[EndTime "13:20:44 PDT"]
[Termination "OK97 won by resignation"]

1. f4 {[%clk 0:03:01.7]} 1... d5 {[%clk 0:02:57]} 2. Nf3 {[%clk 0:03:02.8]} 2...
Nf6 {[%clk 0:02:55.4]} 3. g3 {[%clk 0:03:04.1]} 3... c6 {[%clk 0:02:56]} 4. Bg2
{[%clk 0:03:05.5]} 4... Qb6 {[%clk 0:02:56.8]} 5. a4 {[%clk 0:03:03.2]} 5... a5
{[%clk 0:02:53.7]} 6. e3 {[%clk 0:03:01.1]} 6... Bf5 {[%clk 0:02:48.3]} 7. O-O
{[%clk 0:03:00.6]} 7... e6 {[%clk 0:02:45.2]} 8. d3 {[%clk 0:02:56.9]} 8... Bc5
{[%clk 0:02:20]} 9. Qe2 {[%clk 0:02:57.4]} 9... h6 {[%clk 0:01:55.9]} 10. Kh1
{[%clk 0:02:52.6]} 10... O-O {[%clk 0:01:44.3]} 11. Nc3 {[%clk 0:02:49.6]} 11...
Bh7 {[%clk 0:01:26.7]} 12. e4 {[%clk 0:02:39.3]} 12... dxe4 {[%clk 0:01:27.1]}
13. dxe4 {[%clk 0:02:40.1]} 13... Nbd7 {[%clk 0:01:09.2]} 14. Ne1 {[%clk
0:02:27.5]} 14... Bb4 {[%clk 0:00:57.1]} 15. Nd3 {[%clk 0:02:24.4]} 15... Nc5
{[%clk 0:00:52.4]} 16. Be3 {[%clk 0:02:12.3]} 16... Nfd7 {[%clk 0:00:35]} 17.
Rad1 {[%clk 0:01:54.4]} 17... Qc7 {[%clk 0:00:31.9]} 18. Nxc5 {[%clk 0:01:46.6]}
18... Nxc5 {[%clk 0:00:29.8]} 19. Qc4 {[%clk 0:01:46.4]} 19... Na6 {[%clk
0:00:14.8]} 20. Ne2 {[%clk 0:01:34.4]} 20... Rfd8 {[%clk 0:00:15.1]} 21. c3
{[%clk 0:01:33.5]} 21... Bf8 {[%clk 0:00:15.1]} 22. Nd4 {[%clk 0:01:29.8]} 22...
Rd7 {[%clk 0:00:13]} 23. f5 {[%clk 0:01:16.6]} 23... e5 {[%clk 0:00:13.4]} 24.
Ne6 {[%clk 0:01:05.7]} 24... fxe6 {[%clk 0:00:11.7]} 25. Rxd7 {[%clk 0:00:54.7]}
25... Qxd7 {[%clk 0:00:11.9]} 26. fxe6 {[%clk 0:00:56.4]} 26... Qe7 {[%clk
0:00:12.9]} 27. Rf7 {[%clk 0:00:55.9]} 27... Qe8 {[%clk 0:00:13]} 28. Rxb7
{[%clk 0:00:49.2]} 28... Be7 {[%clk 0:00:11.6]} 29. Rb6 {[%clk 0:00:41.5]} 29...
Nc7 {[%clk 0:00:12]} 30. Rxc6 {[%clk 0:00:42.2]} 30... Rc8 {[%clk 0:00:11.2]}
31. Rxc7 {[%clk 0:00:42.3]} 31... Rxc7 {[%clk 0:00:11.1]} 32. Qxc7 {[%clk
0:00:44.2]} 32... Qxa4 {[%clk 0:00:11]} 33. Qc8+ {[%clk 0:00:39.7]} 33... Bf8
{[%clk 0:00:11.2]} 34. e7 {[%clk 0:00:36.6]} 1-0

[Event "*** Titled Tuesday Blitz"]
[Site "Chess.com"]
[Date "2018.08.07"]
[Round "2"]
[White "francogreek"]
[Black "GrigorGrigorov"]
[Result "1-0"]
[WhiteElo "2432"]
[BlackElo "2702"]
[TimeControl "180+2"]
[EndTime "13:21:01 PDT"]
[Termination "francogreek won by resignation"]

1. e4 {[%clk 0:03:01.1]} 1... e6 {[%clk 0:03:00.6]} 2. Nf3 {[%clk 0:03:01.1]}
2... d5 {[%clk 0:03:00.2]} 3. e5 {[%clk 0:03:01.2]} 3... c5 {[%clk 0:03:00.5]}
4. b4 {[%clk 0:03:02.4]} 4... cxb4 {[%clk 0:02:59.9]} 5. d4 {[%clk 0:03:03.6]}
5... Nc6 {[%clk 0:02:59.8]} 6. a3 {[%clk 0:03:03.9]} 6... bxa3 {[%clk
0:02:57.9]} 7. c3 {[%clk 0:03:05.3]} 7... Bd7 {[%clk 0:02:55.3]} 8. Bd3 {[%clk
0:03:06.2]} 8... b5 {[%clk 0:02:49.1]} 9. Bxb5 {[%clk 0:02:42.8]} 9... Nxe5
{[%clk 0:02:49.3]} 10. Nxe5 {[%clk 0:02:37]} 10... Bxb5 {[%clk 0:02:50.1]} 11.
Nxa3 {[%clk 0:02:38.7]} 11... Bxa3 {[%clk 0:02:33.1]} 12. Bxa3 {[%clk
0:02:40.6]} 12... Ne7 {[%clk 0:02:33.8]} 13. Qg4 {[%clk 0:02:03.7]} 13... O-O
{[%clk 0:02:29.8]} 14. h4 {[%clk 0:02:04.8]} 14... Qc7 {[%clk 0:02:28.9]} 15.
Rc1 {[%clk 0:01:59.8]} 15... Rfe8 {[%clk 0:02:19]} 16. h5 {[%clk 0:01:59.8]}
16... h6 {[%clk 0:02:13.3]} 17. Rh3 {[%clk 0:02:00.4]} 17... Nf5 {[%clk
0:02:09.7]} 18. Qf3 {[%clk 0:01:49.2]} 18... f6 {[%clk 0:02:05.9]} 19. Ng6
{[%clk 0:01:45.4]} 19... e5 {[%clk 0:01:45.3]} 20. Qxd5+ {[%clk 0:01:42.4]}
20... Qf7 {[%clk 0:01:30.8]} 21. Qxb5 {[%clk 0:01:41.5]} 21... Rab8 {[%clk
0:01:29]} 22. Qd3 {[%clk 0:01:36]} 22... exd4+ {[%clk 0:01:12.6]} 23. Kf1 {[%clk
0:01:36.9]} 23... Qd7 {[%clk 0:00:57.1]} 24. cxd4 {[%clk 0:01:16.6]} 24... Rbd8
{[%clk 0:00:36.7]} 25. Rd1 {[%clk 0:01:11.3]} 25... Qa4 {[%clk 0:00:36.6]} 26.
Qb3+ {[%clk 0:01:11.2]} 26... Qxb3 {[%clk 0:00:37.6]} 27. Rxb3 {[%clk
0:01:13.1]} 27... Rxd4 {[%clk 0:00:28.2]} 28. Rxd4 {[%clk 0:01:13.9]} 28... Nxd4
{[%clk 0:00:30.1]} 29. Rb7 {[%clk 0:01:02.6]} 29... Nc2 {[%clk 0:00:29.8]} 30.
Ne7+ {[%clk 0:00:42.4]} 30... Kh8 {[%clk 0:00:30.7]} 31. Bc5 {[%clk 0:00:40.6]}
31... a5 {[%clk 0:00:29.7]} 32. Rb2 {[%clk 0:00:37.3]} 32... Nb4 {[%clk
0:00:24.7]} 33. Bxb4 {[%clk 0:00:36.3]} 33... axb4 {[%clk 0:00:26.6]} 34. Ng6+
{[%clk 0:00:37.9]} 34... Kg8 {[%clk 0:00:21.1]} 35. Rxb4 {[%clk 0:00:39.8]}
35... Ra8 {[%clk 0:00:22.5]} 36. g4 {[%clk 0:00:38.1]} 36... Ra5 {[%clk
0:00:23.2]} 37. Kg2 {[%clk 0:00:38.2]} 37... Kf7 {[%clk 0:00:24.3]} 38. Rb7+
{[%clk 0:00:36.4]} 38... Kg8 {[%clk 0:00:24.9]} 39. Nh4 {[%clk 0:00:37.9]} 1-0

[Event "*** Titled Tuesday Blitz"]
[Site "Chess.com"]
[Date "2018.08.07"]
[Round "2"]
[White "Mbneu"]
[Black "Adham_Fawzy"]
[Result "0-1"]
[WhiteElo "2299"]
[BlackElo "2555"]
[TimeControl "180+2"]
[EndTime "13:21:01 PDT"]
[Termination "Adham_Fawzy won by resignation"]

1. d4 {[%clk 0:03:01.9]} 1... Nf6 {[%clk 0:03:00.5]} 2. c4 {[%clk 0:03:02.4]}
2... e6 {[%clk 0:03:01.3]} 3. Nc3 {[%clk 0:03:03]} 3... Bb4 {[%clk 0:03:02.3]}
4. Bg5 {[%clk 0:03:03.3]} 4... d5 {[%clk 0:03:02.1]} 5. Nf3 {[%clk 0:02:59.1]}
5... O-O {[%clk 0:03:02.6]} 6. e3 {[%clk 0:03:00.1]} 6... Nbd7 {[%clk
0:03:02.7]} 7. Bd3 {[%clk 0:02:58.4]} 7... c5 {[%clk 0:03:02.8]} 8. cxd5 {[%clk
0:02:57.8]} 8... exd5 {[%clk 0:02:56.5]} 9. O-O {[%clk 0:02:57.8]} 9... h6
{[%clk 0:02:56.4]} 10. Bh4 {[%clk 0:02:58.2]} 10... c4 {[%clk 0:02:48.7]} 11.
Bf5 {[%clk 0:02:53.1]} 11... Be7 {[%clk 0:02:48.6]} 12. Bxd7 {[%clk 0:02:34.9]}
12... Qxd7 {[%clk 0:02:50.5]} 13. Ne5 {[%clk 0:02:35.4]} 13... Qd8 {[%clk
0:02:51.6]} 14. f4 {[%clk 0:02:32]} 14... Bf5 {[%clk 0:02:35.1]} 15. g4 {[%clk
0:02:31.4]} 15... Be4 {[%clk 0:02:28]} 16. g5 {[%clk 0:02:18.2]} 16... hxg5
{[%clk 0:02:27.6]} 17. Bxg5 {[%clk 0:01:55.8]} 17... Bf5 {[%clk 0:02:18.4]} 18.
Qf3 {[%clk 0:01:51.8]} 18... Be4 {[%clk 0:02:09.4]} 19. Qh3 {[%clk 0:01:52.1]}
19... Nh7 {[%clk 0:01:44.6]} 20. Bxe7 {[%clk 0:01:42.1]} 20... Qxe7 {[%clk
0:01:46.5]} 21. Nxe4 {[%clk 0:01:42.1]} 21... dxe4 {[%clk 0:01:48.3]} 22. Nxc4
{[%clk 0:01:42.6]} 22... Rac8 {[%clk 0:01:47.8]} 23. Rac1 {[%clk 0:01:42.5]}
23... Nf6 {[%clk 0:01:33.9]} 24. Ne5 {[%clk 0:01:35.5]} 24... Rxc1 {[%clk
0:01:34.6]} 25. Rxc1 {[%clk 0:01:35.7]} 25... Qb4 {[%clk 0:01:36.1]} 26. Qg2
{[%clk 0:01:14.9]} 26... Nd5 {[%clk 0:01:32.5]} 27. Qxe4 {[%clk 0:00:59.9]}
27... Qd2 {[%clk 0:01:28.8]} 28. Qxd5 {[%clk 0:00:45.2]} 28... Qxe3+ {[%clk
0:01:24.9]} 29. Kg2 {[%clk 0:00:43.8]} 29... Qd2+ {[%clk 0:01:25.3]} 30. Kg3
{[%clk 0:00:40.3]} 30... Qxc1 {[%clk 0:01:26.3]} 31. f5 {[%clk 0:00:36.3]} 31...
Qg1+ {[%clk 0:01:23.8]} 32. Kh3 {[%clk 0:00:33.6]} 32... Qf1+ {[%clk 0:01:21.9]}
33. Kg4 {[%clk 0:00:34.1]} 33... Qg1+ {[%clk 0:01:21.5]} 34. Kh3 {[%clk
0:00:34.7]} 34... Qg5 {[%clk 0:01:20.5]} 35. Nf3 {[%clk 0:00:28.4]} 35... Qf4
{[%clk 0:01:18.7]} 36. Nh4 {[%clk 0:00:20.3]} 36... Re8 {[%clk 0:01:14.9]} 37.
Ng2 {[%clk 0:00:20.7]} 37... Qg5 {[%clk 0:01:10.9]} 38. Qf3 {[%clk 0:00:19.8]}
38... g6 {[%clk 0:01:05.9]} 39. fxg6 {[%clk 0:00:18.2]} 39... Qxg6 {[%clk
0:01:04.7]} 40. Nf4 {[%clk 0:00:18.2]} 40... Qf5+ {[%clk 0:01:01.2]} 41. Kg3
{[%clk 0:00:18.1]} 41... Re4 {[%clk 0:00:59.6]} 42. d5 {[%clk 0:00:15.7]} 42...
Qg5+ {[%clk 0:00:57.1]} 43. Qg4 {[%clk 0:00:16.4]} 43... Re3+ {[%clk 0:00:58.3]}
0-1